bitfinex-derivatives/quotes_SOLF0:USTF0_20250623
["timestamp","ask_amount","ask_price","bid_price","bid_amount"]
[1750675093233,37.0,133.78,133.73,5.27690029]
[1750675093722,7.4743,133.76,133.73,12.75220029]
[1750675093923,7.4743,133.76,133.73,5.27690029]
[1750675094129,37.0,133.78,133.73,5.27690029]
[1750675094627,7.4737,133.77,133.73,5.27690029]
[1750675094827,7.4737,133.77,133.74,7.4748]
[1750675095435,7.4742,133.76,133.74,7.4748]
[1750675098834,7.4742,133.76,133.73,5.27690029]
[1750675098835,7.4746,133.75,133.73,12.75240029]
[1750675099323,45.29556787,133.78,133.73,5.27690029]
[1750675100736,7.4751,133.74,133.73,5.27690029]
[1750675101743,7.4751,133.74,133.71,12.75320029]
[1750675105237,7.4758,133.73,133.71,7.4763]
[1750675105434,7.4758,133.73,133.71,5.27690029]
[1750675106641,7.4758,133.73,133.71,12.75370029]
[1750675108039,7.4763,133.72,133.7,51.43701609]
[1750675108237,36.96,133.75,133.71,5.27690029]
[1750675108739,36.96,133.75,133.7,5.27690029]
[1750675109139,7.4766,133.72,133.7,5.27690029]
[1750675110436,45.27001822,133.75,133.69,12.23681638]
[1750675110633,8.20043222,133.74,133.68,6.95991609]
[1750675110931,7.4776,133.7,133.67,118.67561638]
[1750675111342,7.4776,133.7,133.68,6.95991609]
[1750675111541,7.4776,133.7,133.67,118.67561638]
[1750675111732,7.4781,133.69,133.67,111.19681638]
[1750675112543,7.4775,133.7,133.67,118.67531638]
[1750675112747,7.4775,133.7,133.67,113.39841609]
[1750675112940,42.23690029,133.72,133.67,68.95991609]
[1750675113648,7.4783,133.69,133.67,68.95991609]
[1750675113848,7.4783,133.69,133.66,19.71611638]
[1750675114543,7.4777,133.7,133.67,7.479]
[1750675114745,39.87990218,133.72,133.67,7.479]
[1750675115945,7.4782,133.69,133.66,19.71611638]
[1750675117447,7.4782,133.69,133.66,12.75620029]
[1750675118446,39.8788453,133.72,133.66,12.75620029]
[1750675119336,7.4782,133.69,133.66,12.75620029]
[1750675119541,7.4782,133.69,133.67,7.479]
[1750675122548,7.4785,133.68,133.66,12.75620029]
[1750675123350,7.4785,133.68,133.67,7.4791]
[1750675124252,7.4782,133.69,133.67,7.4791]
[1750675126652,36.96,133.72,133.68,5.27690029]
[1750675127953,7.477,133.71,133.69,7.4776]
[1750675129355,7.4774,133.7,133.68,12.75510029]
[1750675132355,7.4771,133.71,133.69,7.4779]
[1750675132557,36.96,133.72,133.68,5.27690029]
[1750675133052,7.4769,133.71,133.68,12.75520029]
[1750675133758,44.4366,133.72,133.69,7.4777]
[1750675134059,36.96,133.72,133.69,7.4777]
[1750675134861,7.4769,133.71,133.69,7.4777]
[1750675135159,36.96,133.72,133.7,7.4774]
[1750675135356,36.96,133.72,133.68,5.27690029]
[1750675135658,44.4367,133.72,133.7,12.75430029]
[1750675136153,7.4767,133.72,133.7,12.75430029]
[1750675137260,7.476,133.73,133.71,7.4768]
[1750675137461,42.24699687,133.72,133.67,9.27988812]
[1750675137763,36.96,133.72,133.65,5.28699687]
[1750675137957,7.4786,133.68,133.65,5.28699687]
[1750675138450,7.4786,133.68,133.65,12.76669687]
[1750675138962,7.4786,133.68,133.66,7.4795]
[1750675139160,7.4781,133.69,133.66,7.4795]
[1750675139355,14.57625101,133.77,133.67,5.28699687]
[1750675139561,5.28699687,133.74,133.68,7.4782]
[1750675139761,36.96,133.73,133.68,7.4782]
[1750675140359,7.4773,133.71,133.68,7.4782]
[1750675140758,7.4773,133.71,133.69,7.4779]
[1750675140961,7.4773,133.71,133.67,67.28699687]
[1750675141258,7.4774,133.7,133.67,67.28699687]
[1750675141459,36.96,133.73,133.68,7.4782]
[1750675142462,7.4771,133.71,133.68,7.4782]
[1750675142661,7.4771,133.71,133.69,7.4779]
[1750675143464,7.4765,133.72,133.7,7.4774]
[1750675144562,36.96,133.73,133.71,7.4767]
[1750675144756,36.96,133.73,133.71,12.76369687]
[1750675144956,2.3854,133.77,133.71,12.76369687]
[1750675144957,2.91785475,133.76,133.71,12.76369687]
[1750675145158,7.4757,133.74,133.71,12.76369687]
[1750675145470,2.91785475,133.75,133.71,12.76369687]
[1750675145665,39.87785475,133.75,133.71,12.76369687]
[1750675145860,8.28966841,133.76,133.71,5.28699687]
[1750675146069,39.87785475,133.75,133.71,5.28699687]
[1750675146368,7.4759,133.73,133.71,5.28699687]
[1750675149266,39.87827868,133.75,133.71,5.28699687]
[1750675149969,7.4759,133.73,133.71,5.28699687]
[1750675150171,39.87827868,133.75,133.71,5.28699687]
[1750675150469,36.96,133.75,133.71,5.28699687]
[1750675150669,36.96,133.75,133.69,15.26809687]
[1750675150872,2.9248012,133.74,133.69,7.79049687]
[1750675151067,42.34177933,133.75,133.69,7.79049687]
[1750675151272,7.4769,133.71,133.69,15.26829687]
[1750675151572,5.38150725,133.74,133.69,15.26829687]
[1750675151776,7.4766,133.72,133.69,15.26829687]
[1750675152475,7.4769,133.71,133.69,9.9813]
[1750675152777,7.4769,133.71,133.69,15.26829687]
[1750675152977,7.4769,133.71,133.69,7.79049687]
[1750675156973,7.4769,133.71,133.69,15.26839687]
[1750675158876,7.4774,133.7,133.69,7.79049687]
[1750675159178,7.4774,133.7,133.69,5.28699687]
[1750675159878,7.4771,133.71,133.69,5.28699687]
[1750675160978,7.4771,133.71,133.69,12.76489687]
[1750675161177,36.94,133.72,133.69,12.76489687]
[1750675161976,7.4771,133.71,133.69,12.76489687]
[1750675162279,7.4771,133.71,133.69,5.28699687]
[1750675164380,7.4771,133.71,133.69,12.76489687]
[1750675165883,7.4771,133.71,133.68,7.4782]
[1750675166082,7.4774,133.7,133.68,12.76519687]
[1750675166981,7.4774,133.7,133.68,5.28699687]
[1750675167485,7.4774,133.7,133.68,12.76539687]
[1750675167979,36.94,133.72,133.68,5.28699687]
[1750675168387,44.4163,133.72,133.7,5.28699687]
[1750675168684,36.94,133.75,133.7,5.28699687]
[1750675168878,42.31772587,133.75,133.7,5.28699687]
[1750675170085,7.4754,133.74,133.72,7.4761]
[1750675170279,7.4754,133.74,133.72,5.28699687]
[1750675170479,36.94,133.75,133.72,5.28699687]
[1750675170783,7.4752,133.74,133.72,12.76299687]
[1750675171179,7.4752,133.74,133.73,7.4757]
[1750675171379,36.94,133.75,133.72,5.28699687]
[1750675172788,7.4751,133.74,133.72,5.28699687]
[1750675174086,7.4757,133.73,133.72,5.28699687]
[1750675175981,7.4755,133.74,133.72,5.28699687]
[1750675176190,36.94,133.75,133.72,5.28699687]
[1750675176390,36.94,133.75,133.7,12.76399687]
[1750675176788,7.476,133.73,133.7,12.76399687]
[1750675176990,36.94,133.75,133.7,12.76399687]
[1750675177300,7.4761,133.73,133.7,12.76399687]
[1750675178086,7.4754,133.74,133.7,5.28699687]
[1750675178793,7.4754,133.74,133.71,7.4765]
[1750675179294,7.4757,133.73,133.71,7.4765]
[1750675181397,7.4754,133.74,133.7,5.28699687]
[1750675182297,7.4757,133.73,133.71,7.4764]
[1750675183200,7.4757,133.73,133.72,7.4762]
[1750675183499,36.94,133.75,133.72,5.28699687]
[1750675183699,39.8648422,133.75,133.72,5.28699687]
[1750675184001,44.4151,133.75,133.73,7.4754]
[1750675185092,36.94,133.75,133.71,5.28699687]
[1750675185292,2.92472224,133.74,133.71,5.28699687]
[1750675185500,2.92472224,133.74,133.7,5.28699687]
[1750675185800,7.4758,133.73,133.7,12.76409687]
[1750675187898,42.31993328,133.75,133.7,5.28699687]
[1750675188103,2.92531506,133.74,133.7,5.28699687]
[1750675188287,42.31993328,133.75,133.7,5.28699687]
[1750675188491,7.4762,133.73,133.7,12.76409687]
[1750675189291,7.4763,133.72,133.7,12.76409687]
[1750675192291,7.4768,133.71,133.7,5.28699687]
[1750675198802,7.4764,133.72,133.7,19.75601535]
[1750675199002,2.92242106,133.74,133.7,19.75601535]
[1750675199202,47.6112536,133.75,133.7,19.75601535]
[1750675199406,7.476,133.73,133.7,19.75601535]
[1750675200706,7.4763,133.72,133.7,12.76439687]
[1750675201107,7.4763,133.72,133.7,19.75601535]
[1750675201306,36.92,133.72,133.69,6.99161848]
[1750675201504,36.92,133.72,133.67,14.56688499]
[1750675201505,5.28699687,133.71,133.67,6.99161848]
[1750675201703,5.28699687,133.71,133.66,6.99161848]
[1750675202001,10.67118774,133.71,133.66,6.99161848]
[1750675202405,7.4793,133.67,133.65,19.75871535]
[1750675202803,7.4793,133.67,133.65,12.27861535]
[1750675203504,7.4796,133.66,133.64,9.37891848]
[1750675203703,7.4796,133.66,133.63,12.27861535]
[1750675203910,42.20699687,133.69,133.63,12.27861535]
[1750675204110,7.4794,133.67,133.64,7.4805]
[1750675205209,7.4788,133.68,133.65,7.48]
[1750675206614,7.4791,133.67,133.64,7.4805]
[1750675210115,7.4791,133.67,133.65,7.4801]
[1750675211520,36.94,133.73,133.65,5.28699687]
[1750675211820,2.9114732,133.72,133.68,5.28699687]
[1750675212014,7.4769,133.71,133.68,12.76549687]
[1750675212718,7.4774,133.7,133.68,12.76549687]
[1750675213620,7.4771,133.71,133.68,12.76549687]
[1750675215925,7.4766,133.72,133.68,5.28699687]
[1750675216931,7.4766,133.72,133.69,7.4776]
[1750675217530,7.4766,133.72,133.68,5.28699687]
[1750675218327,7.4766,133.72,133.69,7.4774]
[1750675222037,7.4768,133.71,133.69,7.4774]
[1750675226639,7.4765,133.72,133.7,7.4773]
[1750675228236,36.94,133.73,133.7,5.28699687]
[1750675229040,39.82256695,133.73,133.7,5.28699687]
[1750675229241,36.94,133.73,133.7,5.28699687]
[1750675229641,7.4765,133.72,133.7,12.76409687]
[1750675230443,44.416,133.73,133.7,12.76409687]
[1750675231544,7.4763,133.72,133.7,12.76409687]
[1750675231843,36.94,133.73,133.7,5.28699687]
[1750675232739,7.4763,133.72,133.7,12.76409687]
[1750675235346,36.94,133.73,133.7,5.28699687]
[1750675235949,7.4766,133.72,133.7,5.28699687]
[1750675236346,7.4766,133.72,133.71,3.38103136]
[1750675236748,6.26594497,133.72,133.68,3.38103136]
[1750675236948,6.26594497,133.72,133.66,14.14261848]
[1750675236949,3.38103136,133.71,133.67,3.38103136]
[1750675237351,7.4785,133.68,133.67,3.38103136]
[1750675238449,7.479,133.67,133.66,5.83703136]
[1750675238652,3.38103136,133.68,133.63,6.99161848]
[1750675238848,7.4802,133.65,133.64,3.38103136]
[1750675239353,7.4802,133.65,133.63,3.38103136]
[1750675239853,7.4802,133.65,133.63,10.86223136]
[1750675240255,7.4802,133.65,133.63,7.4812]
[1750675240656,7.4802,133.65,133.62,12.7705915]
[1750675241257,7.4802,133.65,133.63,7.4812]
[1750675242159,7.4802,133.65,133.62,12.7706915]
[1750675243563,7.4799,133.66,133.63,7.481]
[1750675243761,36.92,133.67,133.63,7.481]
[1750675244760,7.4802,133.65,133.63,7.481]
[1750675252263,7.4802,133.65,133.62,12.7705915]
[1750675253068,7.4811,133.64,133.62,5.2889915]
[1750675254166,7.4813,133.63,133.62,5.2889915]
[1750675254360,7.4813,133.63,133.61,2.3531]
[1750675255062,7.4818,133.62,133.61,2.3531]
[1750675255267,42.2089915,133.67,133.61,2.3531]
[1750675255867,36.92,133.67,133.61,2.3531]
[1750675256161,7.4817,133.63,133.61,2.3531]
[1750675256365,42.2089915,133.67,133.61,2.3531]
[1750675257768,42.2089915,133.67,133.61,9.8352]
[1750675257973,42.2089915,133.67,133.61,7.6420915]
[1750675258474,7.4816,133.63,133.61,7.6420915]
[1750675260072,7.4816,133.63,133.61,15.1243915]
[1750675261273,7.481,133.64,133.61,15.1243915]
[1750675261464,36.92,133.64,133.6,62.0]
[1750675261667,36.92,133.64,133.58,4.8551]
[1750675261970,7.4826,133.61,133.58,10.1440915]
[1750675262370,7.4826,133.61,133.6,3.38673417]
[1750675262570,40.30673417,133.61,133.57,5.81153417]
[1750675262765,40.30673417,133.61,133.56,3.38673417]
[1750675262766,36.92,133.61,133.56,3.38673417]
[1750675262971,40.30673417,133.61,133.57,3.38673417]
[1750675263274,40.30673417,133.61,133.54,14.06441848]
[1750675263477,3.38673417,133.6,133.56,3.38673417]
[1750675263777,7.4845,133.58,133.56,3.38673417]
[1750675263974,3.38673417,133.57,133.54,7.0728]
[1750675264167,7.4858,133.55,133.54,2.2797]
[1750675264370,42.21720074,133.58,133.51,5.29720074]
[1750675264668,7.4853,133.56,133.51,5.29720074]
[1750675264871,36.92,133.58,133.53,12.78360074]
[1750675265079,36.92,133.58,133.53,5.29720074]
[1750675265269,5.29720074,133.56,133.5,62.0]
[1750675265471,36.92,133.55,133.5,5.29720074]
[1750675265670,44.4061,133.55,133.5,5.29720074]
[1750675265875,36.92,133.55,133.51,7.4877]
[1750675266174,7.4866,133.54,133.51,7.4877]
[1750675266475,7.4866,133.54,133.51,5.29720074]
[1750675266975,7.4866,133.54,133.51,12.78510074]
[1750675267175,7.4866,133.54,133.51,7.4879]
[1750675267374,7.4866,133.54,133.51,12.78510074]
[1750675267569,7.487,133.53,133.51,5.29720074]
[1750675268165,7.487,133.53,133.5,12.78560074]
[1750675269172,7.4866,133.54,133.51,7.4879]
[1750675269381,36.92,133.55,133.5,5.29720074]
[1750675269680,7.4872,133.53,133.5,12.78550074]
[1750675270076,36.92,133.55,133.5,5.29720074]
[1750675270578,7.4868,133.54,133.51,7.4876]
[1750675270975,7.487,133.53,133.5,5.29720074]
[1750675271180,36.92,133.55,133.5,5.29720074]
[1750675271880,36.92,133.55,133.51,5.29720074]
[1750675272282,36.92,133.55,133.48,62.0]
[1750675272583,36.92,133.55,133.5,5.29720074]
[1750675272783,7.4866,133.54,133.5,12.78520074]
[1750675272979,36.92,133.55,133.5,12.78520074]
[1750675273175,36.92,133.55,133.5,7.488]
[1750675273376,7.4872,133.53,133.5,12.78520074]
[1750675274284,7.4865,133.54,133.51,7.4878]
[1750675275189,7.4871,133.53,133.51,7.4878]
[1750675275386,7.4871,133.53,133.5,12.78550074]
[1750675276688,7.4871,133.53,133.51,7.4879]
[1750675277587,7.4866,133.54,133.51,7.4879]
[1750675280994,7.4866,133.54,133.51,12.78510074]
[1750675282391,37.04,133.58,133.53,5.29720074]
[1750675282789,7.485,133.57,133.53,5.29720074]
[1750675282994,37.04,133.58,133.53,5.29720074]
[1750675283296,7.4855,133.56,133.54,7.486]
[1750675283797,7.485,133.57,133.54,7.486]
[1750675284198,37.04,133.58,133.54,7.486]
[1750675284397,7.4854,133.56,133.54,7.486]
[1750675284698,7.4854,133.56,133.53,12.78380074]
[1750675284897,7.4872,133.53,133.5,5.29720074]
[1750675285294,7.4872,133.53,133.5,7.4883]
[1750675285501,7.4872,133.53,133.5,5.29720074]
[1750675285697,7.4866,133.54,133.5,5.29720074]
[1750675286092,7.4866,133.54,133.51,7.4877]
[1750675286492,7.4866,133.54,133.5,5.29720074]
[1750675287604,7.4861,133.55,133.52,12.78440074]
[1750675287897,7.4861,133.55,133.52,5.29720074]
[1750675288289,7.4861,133.55,133.53,7.4867]
[1750675288997,42.33720074,133.58,133.52,5.29720074]
[1750675289902,42.33720074,133.58,133.51,5.29720074]
[1750675290098,5.29720074,133.56,133.5,12.78540074]
[1750675290398,37.04,133.55,133.5,12.78540074]
[1750675290603,7.4878,133.52,133.5,5.29720074]
[1750675291098,7.4878,133.52,133.49,44.5287]
[1750675291294,5.29720074,133.54,133.47,2.2797]
[1750675291491,5.29720074,133.54,133.49,5.29720074]
[1750675292600,5.29720074,133.54,133.49,12.78600074]
[1750675292997,7.4883,133.51,133.49,5.29720074]
[1750675293199,5.29720074,133.54,133.48,12.78650074]
[1750675293806,5.29720074,133.54,133.47,9.7696]
[1750675294005,5.29720074,133.54,133.47,2.2797]
[1750675294299,7.4894,133.49,133.47,2.2797]
[1750675294704,7.4894,133.49,133.46,49.82780074]
[1750675294901,7.4889,133.5,133.46,49.82780074]
[1750675295101,7.4889,133.5,133.46,12.78780074]
[1750675295606,7.4889,133.5,133.46,5.29720074]
[1750675295907,7.4892,133.49,133.46,5.29720074]
[1750675296106,7.4892,133.49,133.46,12.78770074]
[1750675296307,7.4892,133.49,133.46,7.4905]
[1750675296605,7.4892,133.49,133.46,12.78770074]
[1750675297909,7.4892,133.49,133.47,7.4903]
[1750675298508,7.4892,133.49,133.46,5.29720074]
[1750675298509,7.4892,133.49,133.46,12.78770074]
[1750675299702,7.4892,133.49,133.47,7.4902]
[1750675300706,7.4889,133.5,133.47,7.4902]
[1750675301004,37.04,133.51,133.48,5.29720074]
[1750675301203,7.4896,133.49,133.45,5.29720074]
[1750675301598,5.29720074,133.5,133.44,76.4129338]
[1750675301799,5.29720074,133.5,133.44,67.29720074]
[1750675302007,7.4906,133.47,133.44,67.29720074]
[1750675302302,5.29720074,133.5,133.44,5.29720074]
[1750675302607,7.4906,133.47,133.44,5.29720074]
[1750675302794,7.4906,133.47,133.44,12.78890074]
[1750675303105,7.4906,133.47,133.44,7.4917]
[1750675303306,7.4906,133.47,133.44,12.78890074]
[1750675303907,5.29720074,133.5,133.44,5.29720074]
[1750675305002,7.76890074,133.5,133.43,44.84650074]
[1750675305202,7.76890074,133.5,133.43,15.29880074]
[1750675305707,7.4911,133.46,133.43,15.29880074]
[1750675306404,7.4914,133.45,133.43,10.0016]
[1750675306606,37.06,133.48,133.43,15.29880074]
[1750675306908,37.06,133.48,133.44,7.4918]
[1750675307601,7.4904,133.47,133.44,7.4918]
[1750675307810,37.06,133.48,133.43,14.72783454]
[1750675308508,44.5502,133.48,133.44,14.4128338]
[1750675308910,44.5498,133.48,133.45,5.29720074]
[1750675309103,7.4898,133.48,133.44,6.9213338]
[1750675309309,37.48,133.51,133.45,5.29720074]
[1750675309508,7.49,133.48,133.45,12.78830074]
[1750675310609,7.4903,133.47,133.45,7.4911]
[1750675310811,5.29720074,133.5,133.43,52.20783454]
[1750675311610,7.4908,133.47,133.44,7.4917]
[1750675312208,7.4908,133.46,133.43,59.69993454]
[1750675312412,42.77720074,133.48,133.42,6.9213338]
[1750675312613,42.77720074,133.48,133.4,46.75988812]
[1750675312614,7.4912,133.46,133.43,7.4925]
[1750675312811,37.48,133.48,133.43,5.29720074]
[1750675313415,7.4905,133.47,133.44,7.4914]
[1750675314612,7.4905,133.47,133.44,12.78860074]
[1750675315110,42.79720074,133.5,133.44,5.29720074]
[1750675315310,42.79720074,133.5,133.46,5.29720074]
[1750675315311,37.5,133.5,133.46,5.29720074]
[1750675315613,7.49,133.48,133.44,71.96450074]
[1750675315808,37.5,133.5,133.44,71.96450074]
[1750675316010,37.5,133.5,133.46,5.29720074]
[1750675316210,37.5,133.5,133.45,5.29720074]
[1750675316820,7.4906,133.47,133.45,12.78850074]
[1750675317015,7.4906,133.47,133.45,5.29720074]
[1750675317917,7.49,133.48,133.45,12.78830074]
[1750675318320,37.5,133.5,133.45,12.78830074]
[1750675318912,37.5,133.5,133.45,5.29720074]
[1750675319117,37.5,133.5,133.45,2.3355]
[1750675319421,7.4894,133.49,133.47,12.78740074]
[1750675319613,7.4894,133.49,133.47,5.29720074]
[1750675320214,37.5,133.5,133.45,64.3355]
[1750675320422,42.79720074,133.5,133.45,2.3355]
[1750675320711,42.79720074,133.5,133.43,44.4213338]
[1750675320913,42.79720074,133.5,133.43,12.21853454]
[1750675321215,42.79720074,133.5,133.44,7.4919]
[1750675321425,37.5,133.5,133.45,5.29720074]
[1750675321810,7.4903,133.47,133.45,12.78840074]
[1750675322015,7.4903,133.47,133.45,5.29720074]
[1750675322210,37.5,133.5,133.44,5.29720074]
[1750675322415,5.29720074,133.49,133.43,6.9213338]
[1750675322709,5.29720074,133.49,133.42,5.29720074]
[1750675323418,7.4922,133.44,133.42,5.29720074]
[1750675323615,42.79720074,133.47,133.41,6.9213338]
[1750675323818,42.79720074,133.47,133.41,5.29720074]
[1750675324023,7.4928,133.43,133.41,5.29720074]
[1750675324317,42.79720074,133.47,133.41,5.29720074]
[1750675325419,42.79720074,133.47,133.39,6.9213338]
[1750675325420,5.29720074,133.45,133.39,12.21853454]
[1750675326118,5.29720074,133.45,133.39,6.9213338]
[1750675326314,10.4257835,133.49,133.38,6.9213338]
[1750675326516,5.29720074,133.45,133.39,5.29720074]
[1750675327022,5.29720074,133.43,133.37,5.29720074]
[1750675327219,37.5,133.42,133.36,12.41500074]
[1750675328019,37.5,133.42,133.38,5.29720074]
[1750675328218,37.5,133.42,133.37,5.29720074]
[1750675328420,7.495,133.39,133.37,5.29720074]
[1750675328826,37.5,133.42,133.37,5.29720074]
[1750675329228,7.4953,133.38,133.37,5.29720074]
[1750675329526,37.5,133.42,133.37,5.29720074]
[1750675330325,37.5,133.42,133.36,69.1178]
[1750675330527,37.5,133.42,133.37,5.29720074]
[1750675330830,7.495,133.39,133.37,5.29720074]
[1750675331327,37.5,133.42,133.34,6.9213338]
[1750675331328,5.29720074,133.41,133.34,6.9213338]
[1750675331531,5.29720074,133.39,133.32,1.30464122]
[1750675331728,131.7469512,133.42,133.31,14.1316338]
[1750675332029,131.7469512,133.42,133.33,5.29720074]
[1750675332221,131.7469512,133.42,133.34,5.29720074]
[1750675332529,5.29720074,133.4,133.33,5.29720074]
[1750675333228,5.29720074,133.4,133.31,7.2103]
[1750675333229,5.29720074,133.38,133.3,6.9213338]
[1750675333523,5.29720074,133.36,133.3,5.29720074]
[1750675333831,7.4974,133.35,133.31,7.499]
[1750675334027,45.49720074,133.38,133.29,40.2]
[1750675334326,7.4969,133.36,133.32,12.79570074]
[1750675334522,7.4969,133.36,133.32,5.29720074]
[1750675335028,7.4971,133.35,133.32,12.79540074]
[1750675335224,7.4971,133.35,133.32,5.29720074]
[1750675335627,7.4971,133.35,133.3,66.8811]
[1750675335830,7.4967,133.36,133.32,5.29720074]
[1750675336232,45.49720074,133.38,133.32,5.29720074]
[1750675336726,7.4974,133.35,133.31,7.4989]
[1750675336926,7.4974,133.35,133.32,5.29720074]
[1750675337725,5.29720074,133.4,133.3,107.1011]
[1750675337924,5.29720074,133.4,133.3,45.1011]
[1750675338118,40.22,133.41,133.3,45.1011]
[1750675338325,5.29720074,133.39,133.32,5.29720074]
[1750675338526,5.29720074,133.4,133.34,12.79440074]
[1750675339434,40.22,133.41,133.35,7.4969]
[1750675339633,45.51720074,133.41,133.35,7.4969]
[1750675339834,7.4953,133.39,133.35,7.4969]
[1750675340033,45.51720074,133.41,133.35,7.4969]
[1750675340334,7.4952,133.39,133.35,12.79410074]
[1750675341329,7.4952,133.39,133.36,7.4964]
[1750675341534,7.4953,133.38,133.34,40.22]
[1750675341734,7.4953,133.38,133.34,45.51720074]
[1750675342034,45.51720074,133.41,133.34,45.51720074]
[1750675342330,7.496,133.37,133.34,45.51720074]
[1750675342534,7.496,133.37,133.34,53.01440074]
[1750675342835,7.4956,133.38,133.34,45.51720074]
[1750675343136,7.4956,133.38,133.35,7.497]
[1750675344039,7.4959,133.37,133.34,53.01460074]
[1750675344745,45.51720074,133.41,133.34,53.01460074]
[1750675345141,7.4959,133.37,133.34,53.01460074]
[1750675346744,7.4959,133.37,133.34,47.7174]
[1750675346943,7.4959,133.37,133.34,53.01460074]
[1750675348144,7.4959,133.37,133.35,7.4969]
[1750675348942,45.51720074,133.41,133.36,7.4961]
[1750675350041,40.22,133.41,133.37,7.4957]
[1750675350747,7.4951,133.39,133.36,12.79320074]
[1750675351345,7.4951,133.39,133.36,7.496]
[1750675351544,7.4951,133.39,133.37,7.4959]
[1750675353945,7.4945,133.4,133.37,7.4959]
[1750675354350,40.22,133.41,133.37,7.4959]
[1750675354847,7.495,133.39,133.36,12.79330074]
[1750675355253,40.22,133.41,133.37,7.4957]
[1750675355750,40.22,133.41,133.36,5.29720074]
[1750675356846,7.4949,133.39,133.37,7.4956]
[1750675359655,7.4944,133.4,133.38,7.4953]
[1750675359856,91.9356512,133.42,133.38,12.79250074]
[1750675360754,91.9356512,133.42,133.39,7.4947]
[1750675360951,45.51720074,133.44,133.4,5.29720074]
[1750675360952,40.22,133.44,133.4,5.29720074]
[1750675361251,45.51720074,133.47,133.4,5.29720074]
[1750675361452,45.51720074,133.47,133.41,7.4932]
[1750675361652,45.51720074,133.47,133.41,12.79040074]
[1750675361858,7.4927,133.43,133.41,12.79040074]
[1750675363154,7.4927,133.43,133.41,5.29720074]
[1750675363860,7.4931,133.42,133.41,5.29720074]
[1750675364056,45.51720074,133.47,133.39,7.4945]
[1750675364264,45.51720074,133.47,133.39,12.79170074]
[1750675364463,7.4937,133.41,133.39,12.79170074]
[1750675364762,5.29720074,133.45,133.39,5.29720074]
[1750675364950,7.4942,133.41,133.39,5.29720074]
[1750675365150,5.29720074,133.45,133.39,5.29720074]
[1750675365763,8.13551864,133.46,133.39,5.29720074]
[1750675366163,7.4937,133.41,133.39,12.79170074]
[1750675366963,7.4937,133.41,133.39,7.4945]
[1750675367161,7.4937,133.41,133.39,12.79170074]
[1750675368364,7.4933,133.42,133.39,12.79170074]
[1750675368565,7.4933,133.42,133.4,7.4942]
[1750675369157,7.4927,133.43,133.4,7.4942]
[1750675369360,7.4927,133.43,133.41,12.79070074]
[1750675370068,8.13992385,133.46,133.4,5.29720074]
[1750675370767,8.13992385,133.46,133.37,47.31439071]
[1750675371069,8.14308202,133.46,133.41,5.29720074]
[1750675371365,7.493,133.43,133.41,5.29720074]
[1750675372064,7.4931,133.42,133.41,5.29720074]
[1750675372268,8.14308202,133.46,133.39,5.29720074]
[1750675372667,7.4936,133.42,133.39,12.79170074]
[1750675373171,7.4937,133.41,133.39,12.79170074]
[1750675373768,8.14308202,133.46,133.39,12.79170074]
[1750675373769,8.1414783,133.46,133.39,5.29720074]
[1750675374369,7.4931,133.42,133.4,7.4939]
[1750675375469,7.4931,133.42,133.4,7.4942]
[1750675375669,7.4927,133.43,133.39,5.29720074]
[1750675376375,7.4927,133.43,133.41,7.4933]
[1750675376874,2.84461954,133.46,133.41,7.4933]
[1750675377375,7.4931,133.42,133.4,7.4938]
[1750675377573,2.84461954,133.46,133.39,5.29720074]
[1750675377771,2.84461954,133.46,133.41,7.4936]
[1750675378477,8.17015154,133.46,133.4,7.4939]
[1750675378777,2.84461954,133.46,133.4,7.4939]
[1750675378979,7.493,133.43,133.4,7.4939]
[1750675379477,2.84461954,133.46,133.4,5.29720074]
[1750675379777,60.49880074,133.47,133.4,5.29720074]
[1750675380465,60.49880074,133.47,133.41,7.4935]
[1750675380867,60.49880074,133.47,133.4,7.4938]
[1750675381079,60.49880074,133.47,133.4,12.79100074]
[1750675381473,40.22,133.47,133.4,5.29720074]
[1750675381677,40.22,133.47,133.42,5.29720074]
[1750675381872,40.22,133.47,133.44,5.29720074]
[1750675382068,40.22,133.47,133.41,40.36]